Workbook

Sheet Authorized Rev Req
A1: Southern California Gas Company
A2: Annual Period 2022
A3: Reporting Date: Quarter Ended September 30
A4: Submitted October 14, 2022
B6: Revenue Requirement Date: | C6: 2022-01-01
B7: Advice Letter: | C7: AL 5915
A8: Filing Description | B8: Authority for Revenue Requirement as of 1/1/2022 | C8: Authorized Revenue Requirement ($000) | D8: Revenue Recovery Mechanism | E8: Balancing Account
A9: Safety Affordability Reliability Proceedings
A10: SoCalGas General Rate Case (GRC) Attrition Year Total Allocated Base Margin | B10: D.19-09-051 | C10: 2797438.81 | D10: Allocated Base Margin | E10: N
A11: Pipeline Safety Enhancement Plan (PSEP) GRC - Local Transmission (subtracted from Base Margin and allocated here) | B11: D.19-09-051 | C11: 20025.2391 | D11: Local Transmission | E11: N
A12: Pipeline Safety Enhancement Plan (PSEP) GRC -Distribution (subtracted from Base Margin and allocated here) | B12: D.19-09-051 | C12: 28629.01 | D12: Distribution | E12: N
A13: Company Use Gas: Other | B13: D.20-02-045, AL 5884, AL 5915G | C13: 1792.692921 | D13: ECPT | E13: N
A14: Company Use Gas: Storage Load Balancing | B14: D.20-02-045, AL 5884, AL 5915G | C14: 1739.982378 | D14: ECPT | E14: N
A15: Exchange Revenues & Interutility Transactions | B15: D.20-02-045, AL 5884, AL 5915G | C15: 342.77791 | D15: ECPT | E15: N
A16: Unaccounted For (UAF) Gas | B16: D.20-02-045, AL 5884, AL 5915G | C16: 43865.64079 | D16: 47% Res (LUAF, Other) | E16: N
A17: Well Incidents & Surface Leaks | B17: D.20-02-045, AL 5884, AL 5915G | C17: 226.3891543 | D17: ECPT | E17: N
A18: SCG PSEP - 2017 Forecast Application RevReq Capital Cost - Local Transmission | B18: D.20-02-045, AL 5884, AL 5915G | C18: 381.0924644 | D18: Local Transmission | E18: N
A19: SCG PSEP - 2017 Forecast Application RevReq Capital Cost - Distribution | B19: D.20-02-045, AL 5884, AL 5915G | C19: 24839.85663 | D19: Distribution | E19: N
A20: AMI Balancing Account (AMIBA) | B20: D.20-02-045, AL 5884, AL 5915G | C20: -77756.9011 | D20: EPAM | E20: Y
A21: Residential Uncollectible Balancing Account (RUBA) | B21: D.20-02-045, AL 5884, AL 5915G | C21: 16080.82923 | D21: ECPT | E21: Y
A22: Affiliate Transfer Fee Account (ATFA) | B22: D.20-02-045, AL 5884, AL 5915G | C22: -56.8521172 | D22: EPAM | E22: Y
A23: Biomethane Cost Incentive Pgm Balancing Acct (BCIPBA) | B23: D.20-02-045, AL 5884, AL 5915G | C23: 10172.0832 | D23: ECPT | E23: Y
A24: Core Fixed Cost Account - Non NGV (CFCA) | B24: D.20-02-045, AL 5884, AL 5915G | C24: -28133.81894 | D24: CFCA | E24: Y
A25: Core Fixed Cost Account - NGV (CFCA) | B25: D.20-02-045, AL 5884, AL 5915G | C25: 9826.724141 | D25: Non-Residential | E25: Y
A26: Core Fixed Cost Account - C&I Shortfall (CFCA) | B26: D.20-02-045, AL 5884, AL 5915G | C26: 28765.69276 | D26: Non-Residential | E26: Y
A27: Economic Practicality Shortfall Memorandum Account (EPSMA) | B27: D.20-02-045, AL 5884, AL 5915G | C27: 395.853484 | D27: Non-Residential | E27: Y
A28: Enhanced Oil Recovery Account (EORA) | B28: D.20-02-045, AL 5884, AL 5915G | C28: 2530.55974 | D28: EPAM | E28: Y
A29: Hazardous Substance Cost-Recovery Account (HSCRA) | B29: D.20-02-045, AL 5884, AL 5915G | C29: 284.26279 | D29: ECPT | E29: Y
A30: Intervenor Award Memorandum Account (IAMA) | B30: D.20-02-045, AL 5884, AL 5915G | C30: 731.580665 | D30: ECPT | E30: Y
A31: Master Meter Balancing Account (MMBA) | B31: D.20-02-045, AL 5884, AL 5915G | C31: 17468.47031 | D31: EPAM | E31: Y
A32: Noncore Fixed Cost Account (NFCA) Margin | B32: D.20-02-045, AL 5884, AL 5915G | C32: 6370.180978 | D32: Non-Residential | E32: Y
A33: Noncore Fixed Cost Account (NFCA) Nonmargin | B33: D.20-02-045, AL 5884, AL 5915G | C33: -3275.185198 | D33: Non-Residential | E33: Y
A34: Integrated Transmission Balancing Account (ITBA) Margin | B34: D.20-02-045, AL 5884, AL 5915G | C34: 176.0981414 | D34: ECPT | E34: Y
A35: Compressor Station Fuel and Power Balancing Account (CFPBA) | B35: D.20-02-045, AL 5884, AL 5915G | C35: -1423.035883 | D35: ECPT | E35: Y
A36: Compression Services Balancing Account (CSBA) | B36: D.20-02-045, AL 5884, AL 5915G | C36: -68.36948884 | D36: Non-Residential | E36: Y
A37: Company-Use Fuel for Load Balancing Account (CUFLBA) | B37: D.20-02-045, AL 5884, AL 5915G | C37: -1168.448441 | D37: ECPT | E37: Y
A38: Noncore Storage Balancing Account (NSBA) | B38: D.20-02-045, AL 5884, AL 5915G | C38: 122.0512176 | D38: ECPT | E38: Y
A39: Pension Balancing Account (PBA) | B39: D.20-02-045, AL 5884, AL 5915G | C39: 11312.64409 | D39: EPAM | E39: Y
A40: PBOP Balancing Account (PBOPBA) | B40: D.20-02-045, AL 5884, AL 5915G | C40: -4328.422797 | D40: EPAM | E40: Y
A41: Safety Enhancement Capital Cost Balancing Account (SECCBA) - Local Transmission | B41: D.20-02-045, AL 5884, AL 5915G | C41: 22874.17654 | D41: Local Transmission | E41: Y
A42: Safety Enhancement Capital Cost Balancing Account (SECCBA) - Distribution | B42: D.20-02-045, AL 5884, AL 5915G | C42: 72521.18682 | D42: Distribution | E42: Y
A43: Safety Enhancement Expense Balancing Account (SEEBA) - Local Transmission | B43: D.20-02-045, AL 5884, AL 5915G | C43: 572.0979832 | D43: Local Transmission | E43: Y
A44: Safety Enhancement Expense Balancing Account (SEEBA) - Distribution | B44: D.20-02-045, AL 5884, AL 5915G | C44: 1611.907472 | D44: Distribution | E44: Y
A45: Research Royalty Memorandum Account (RRMA) | B45: D.20-02-045, AL 5884, AL 5915G | C45: -160.8244502 | D45: EPAM | E45: Y
A46: Self-Generation Program Memorandum Account (SGPMA) | B46: D.20-02-045, AL 5884, AL 5915G | C46: 16267.79819 | D46: SGIP | E46: Y
A47: System Operator Gas Account (SOGA) | B47: D.20-02-045, AL 5884, AL 5915G | C47: -57.47472488 | D47: ECPT | E47: Y
A48: Rewards & Penalties Balancing Account (RPBA) | B48: D.20-02-045, AL 5884, AL 5915G | C48: -266.7671576 | D48: EPAM | E48: Y
A49: Liability Insurance Premium Balancing Account (LIPBA) | B49: D.20-02-045, AL 5884, AL 5915G | C49: 14313.74818 | D49: EPAM | E49: Y
A50: NonCore Backbone Transmission | B50: D.20-02-045, AL 5884, AL 5915G | C50: 205899.099 | D50: Backbone Transmission | E50: N
A51: Storage Integrity Management Program Balancing Account (SIMPBA) Balance | B51: D.22-07-016, AL 6023 | C51: 0 | D51: EPAM | E51: Y
A52: On-Bill Financing Balancing Account (OBFBA) | B52: AL 5853-A | C52: 0 | D52: EPAM | E52: Y
A56: Subtotal Safety Affordability Reliability | C56: =SUM(C10:C55) -> 3240882.436
A58: Public Policy Proceedings
A59: AB32 Fees (subtracted from base margin and allocated here) | B59: D.19-09-051 | C59: 5107.071894 | D59: ECPT adjusted | E59: N
A60: Green House Gas Balancing Account (GHGBA) - Company Gas Compressor Revenue Requirement | B60: D.20-02-045, AL 5884, AL 5915G | C60: 2676.455882 | D60: ECPT | E60: N
A61: Green House Gas Balancing Account (GHGBA) - End User Revenue Requirement | B61: D.20-02-045, AL 5884, AL 5915G | C61: 421911.6559 | D61: GHG End User | E61: N
A62: Green House Gas Balancing Account (GHGBA) - LUAF Revenue Requirement | B62: D.20-02-045, AL 5884, AL 5915G | C62: 11523.70083 | D62: 47% Res (LUAF, Other) | E62: N
A63: Green House Gas Balancing Account (GHGBA) - Company Gas Compressor | B63: D.20-02-045, AL 5884, AL 5915G | C63: 110.1068734 | D63: ECPT | E63: Y
A64: Green House Gas Balancing Account (GHGBA) - End User | B64: D.20-02-045, AL 5884, AL 5915G | C64: 24082.11232 | D64: GHG End User | E64: Y
A65: Green House Gas Balancing Account (GHGBA) - LUAF | B65: D.20-02-045, AL 5884, AL 5915G | C65: 96.16147584 | D65: 47% Res (LUAF, Other) | E65: Y
A66: New Envirnomental Regulatory Balancing Account (NERBA) - Admin Fees Subaccount | B66: D.20-02-045, AL 5884, AL 5915G | C66: 3566.9059 | D66: ECPT adjusted | E66: Y
A67: New Environmental Regulatory Balancing Account (NERBA) - Leak Detection & Repair (LDAR) sub-account | B67: D.20-02-045, AL 5884, AL 5915G | C67: 1979.707886 | D67: EPAM | E67: Y
A68: New Envirnomental Regulatory Balancing Account (NERBA) -Natural Gas Leak Abatement Program | B68: D.20-02-045, AL 5884, AL 5915G | C68: -2147.512017 | D68: EPAM | E68: Y
A69: TLS Adjustment | B69: D.20-02-045, AL 5884, AL 5915G | C69: -6644.931817 | D69: Non-Residential | E69: N
A70: Natural Gas Leak Abatement Program Revenue Requirement | B70: AL 5915G | C70: 86446.46472 | D70: EPAM | E70: N
A71: Biogas Conditioning/Upgrading Svcs Bal Acct (BCSBA) | B71: D.20-02-045, AL 5884, AL 5915G | C71: -48.66967436 | D71: EPAM | E71: Y
A72: Diary Biomethane Project Balancing Account (DBPBA) | B72: D.20-02-045, AL 5884, AL 5915G | C72: 45457.03256 | D72: EPAM | E72: Y
A73: California Solar Iniative Thermal Memorandum Account (CSITPMA) | B73: D.20-02-045, AL 5884, AL 5915G | C73: 1411.38197 | D73: ECPT adjusted | E73: Y
A82: California Alternate Rates for Energy (CARE) | B82: AL 5891G, D.21-06-015 | C82: 229388.1321 | D82: Public Purpose Programs | E82: N
A83: Energy Efficiency | B83: AL 5891G, AL 5898-A | C83: 107144.935 | D83: Public Purpose Programs | E83: N
A84: RD&D | B84: AL 5891G | C84: 12406.90965 | D84: Public Purpose Programs | E84: N
A85: Bureau Of Equalization BOE | B85: AL 5891G | C85: 547.65497 | D85: Public Purpose Programs | E85: N
A86: Energy Savings Assistance | B86: AL 5891G, D.21-06-015 | C86: =0 -> 0 | D86: Public Purpose Programs | E86: N
A94: Subtotal Public Policy | C94: =SUM(C59:C93) -> 945015.2765
A96: EOR | B96: D.20-02-045, AL 5884 | C96: -19696.02666 | D96: EPAM
A98: Procurement
A99: Procurement | B99: D.98-07-068 | C99: =3290999*0.6634475 -> 2183405.059 | D99: Core Procurement
A105: Subtotal Procrement | C105: =SUM(C99:C104) -> 2183405.059
A107: Total Authorized Revenue | C107: =C56+C94+C105+C96 -> 6349606.745

Sheet Incremental Rev Req
A1: Southern California Gas Company
A2: Annual Period 2022
A3: ='Authorized Rev Req'!A3 -> Reporting Date: Quarter Ended September 30
A4: Submitted October 14, 2022
A6: Current Revenue Requirement ($000): | B6: ='Authorized Rev Req'!C107 -> 6349606.745
A7: Current Revenue Requirement Effective: | B7: ='Authorized Rev Req'!C6 -> 2022-01-01
A8: Approved Application(s), Implemented Since Jan 1 or To Be Implemented
A9: Filing Description | B9: Proceeding | C9: Authority for Revenue Requirement | D9: Authorized Revenue Requirement with FF&U ($000) | E9: Revenue Recovery Mechanism | F9: Authorized Revenue Requirement with FF&U ($000) - Breakout by Year
A10: Safety Affordability Reliability Proceedings | D10: =B7 -> 2022-01-01 | F10: 2022 | G10: 2023 | H10: 2024 | I10: 2025 | J10: 2026
A11: ='Authorized Rev Req'!A10 -> SoCalGas General Rate Case (GRC) Attrition Year Total Allocated Base Margin | C11: ='Authorized Rev Req'!B10 -> D.19-09-051 | D11: =F11 -> 2797438.81 | E11: ='Authorized Rev Req'!D10 -> Allocated Base Margin | F11: ='Authorized Rev Req'!C10 -> 2797438.81 | G11: 3611906 | H11: =G11 -> 3611906 | I11: =H11 -> 3611906 | J11: =I11 -> 3611906
A12: ='Authorized Rev Req'!A11 -> Pipeline Safety Enhancement Plan (PSEP) GRC - Local Transmission (subtracted from Base Margin and allocated here) | C12: ='Authorized Rev Req'!B11 -> D.19-09-051 | D12: =F12 -> 20025.2391 | E12: ='Authorized Rev Req'!D11 -> Local Transmission | F12: ='Authorized Rev Req'!C11 -> 20025.2391 | G12: 21205.1253 | H12: =G12 -> 21205.1253 | I12: =0 -> 0 | J12: =0 -> 0
A13: ='Authorized Rev Req'!A12 -> Pipeline Safety Enhancement Plan (PSEP) GRC -Distribution (subtracted from Base Margin and allocated here) | C13: ='Authorized Rev Req'!B12 -> D.19-09-051 | D13: 28629.01 | E13: ='Authorized Rev Req'!D12 -> Distribution | F13: ='Authorized Rev Req'!C12 -> 28629.01 | G13: 30315.83 | H13: =G13 -> 30315.83 | I13: =0 -> 0 | J13: =0 -> 0
A14: ='Authorized Rev Req'!A13 -> Company Use Gas: Other | C14: ='Authorized Rev Req'!B13 -> D.20-02-045, AL 5884, AL 5915G | D14: 1792.692921 | E14: ='Authorized Rev Req'!D13 -> ECPT | F14: ='Authorized Rev Req'!C13 -> 1792.692921 | G14: =0 -> 0 | H14: =G14 -> 0 | I14: =H14 -> 0 | J14: =I14 -> 0
A15: ='Authorized Rev Req'!A14 -> Company Use Gas: Storage Load Balancing | C15: ='Authorized Rev Req'!B14 -> D.20-02-045, AL 5884, AL 5915G | D15: 1739.982378 | E15: ='Authorized Rev Req'!D14 -> ECPT | F15: ='Authorized Rev Req'!C14 -> 1739.982378 | G15: =0 -> 0 | H15: 0 | I15: 0 | J15: 0
A16: ='Authorized Rev Req'!A15 -> Exchange Revenues & Interutility Transactions | C16: ='Authorized Rev Req'!B15 -> D.20-02-045, AL 5884, AL 5915G | D16: 342.77791 | E16: ='Authorized Rev Req'!D15 -> ECPT | F16: ='Authorized Rev Req'!C15 -> 342.77791 | G16: =0 -> 0 | H16: 0 | I16: 0 | J16: 0
A17: ='Authorized Rev Req'!A16 -> Unaccounted For (UAF) Gas | C17: ='Authorized Rev Req'!B16 -> D.20-02-045, AL 5884, AL 5915G | D17: 43865.64079 | E17: ='Authorized Rev Req'!D16 -> 47% Res (LUAF, Other) | F17: ='Authorized Rev Req'!C16 -> 43865.64079 | G17: =0 -> 0 | H17: 0 | I17: 0 | J17: 0
A18: ='Authorized Rev Req'!A17 -> Well Incidents & Surface Leaks | C18: ='Authorized Rev Req'!B17 -> D.20-02-045, AL 5884, AL 5915G | D18: 226.3891543 | E18: ='Authorized Rev Req'!D17 -> ECPT | F18: ='Authorized Rev Req'!C17 -> 226.3891543 | G18: =0 -> 0 | H18: 0 | I18: 0 | J18: 0
A19: ='Authorized Rev Req'!A18 -> SCG PSEP - 2017 Forecast Application RevReq Capital Cost - Local Transmission | C19: ='Authorized Rev Req'!B18 -> D.20-02-045, AL 5884, AL 5915G | D19: 381.0924644 | E19: ='Authorized Rev Req'!D18 -> Local Transmission | F19: ='Authorized Rev Req'!C18 -> 381.0924644 | G19: =0 -> 0 | H19: 0 | I19: 0 | J19: 0
A20: ='Authorized Rev Req'!A19 -> SCG PSEP - 2017 Forecast Application RevReq Capital Cost - Distribution | C20: ='Authorized Rev Req'!B19 -> D.20-02-045, AL 5884, AL 5915G | D20: 24839.85663 | E20: ='Authorized Rev Req'!D19 -> Distribution | F20: ='Authorized Rev Req'!C19 -> 24839.85663 | G20: =0 -> 0 | H20: 0 | I20: 0 | J20: 0
A21: ='Authorized Rev Req'!A20 -> AMI Balancing Account (AMIBA) | C21: ='Authorized Rev Req'!B20 -> D.20-02-045, AL 5884, AL 5915G | D21: -77756.9011 | E21: ='Authorized Rev Req'!D20 -> EPAM | F21: ='Authorized Rev Req'!C20 -> -77756.9011 | G21: =0 -> 0 | H21: 0 | I21: 0 | J21: 0
A22: ='Authorized Rev Req'!A21 -> Residential Uncollectible Balancing Account (RUBA) | C22: ='Authorized Rev Req'!B21 -> D.20-02-045, AL 5884, AL 5915G | D22: 16080.82923 | E22: ='Authorized Rev Req'!D21 -> ECPT | F22: ='Authorized Rev Req'!C21 -> 16080.82923 | G22: =0 -> 0 | H22: 0 | I22: 0 | J22: 0
A23: ='Authorized Rev Req'!A22 -> Affiliate Transfer Fee Account (ATFA) | C23: ='Authorized Rev Req'!B22 -> D.20-02-045, AL 5884, AL 5915G | D23: -56.8521172 | E23: ='Authorized Rev Req'!D22 -> EPAM | F23: ='Authorized Rev Req'!C22 -> -56.8521172 | G23: =0 -> 0 | H23: 0 | I23: 0 | J23: 0
A24: ='Authorized Rev Req'!A23 -> Biomethane Cost Incentive Pgm Balancing Acct (BCIPBA) | C24: ='Authorized Rev Req'!B23 -> D.20-02-045, AL 5884, AL 5915G | D24: 10172.0832 | E24: ='Authorized Rev Req'!D23 -> ECPT | F24: ='Authorized Rev Req'!C23 -> 10172.0832 | G24: =0 -> 0 | H24: 0 | I24: 0 | J24: 0
A25: ='Authorized Rev Req'!A24 -> Core Fixed Cost Account - Non NGV (CFCA) | C25: ='Authorized Rev Req'!B24 -> D.20-02-045, AL 5884, AL 5915G | D25: -28133.81894 | E25: ='Authorized Rev Req'!D24 -> CFCA | F25: ='Authorized Rev Req'!C24 -> -28133.81894 | G25: =0 -> 0 | H25: 0 | I25: 0 | J25: 0
A26: ='Authorized Rev Req'!A25 -> Core Fixed Cost Account - NGV (CFCA) | C26: ='Authorized Rev Req'!B25 -> D.20-02-045, AL 5884, AL 5915G | D26: 9826.724141 | E26: ='Authorized Rev Req'!D25 -> Non-Residential | F26: ='Authorized Rev Req'!C25 -> 9826.724141 | G26: =0 -> 0 | H26: 0 | I26: 0 | J26: 0
A27: ='Authorized Rev Req'!A26 -> Core Fixed Cost Account - C&I Shortfall (CFCA) | C27: ='Authorized Rev Req'!B26 -> D.20-02-045, AL 5884, AL 5915G | D27: 28765.69276 | E27: ='Authorized Rev Req'!D26 -> Non-Residential | F27: ='Authorized Rev Req'!C26 -> 28765.69276 | G27: =0 -> 0 | H27: 0 | I27: 0 | J27: 0
A28: ='Authorized Rev Req'!A27 -> Economic Practicality Shortfall Memorandum Account (EPSMA) | C28: ='Authorized Rev Req'!B27 -> D.20-02-045, AL 5884, AL 5915G | D28: 395.853484 | E28: ='Authorized Rev Req'!D27 -> Non-Residential | F28: ='Authorized Rev Req'!C27 -> 395.853484 | G28: =0 -> 0 | H28: 0 | I28: 0 | J28: 0
A29: ='Authorized Rev Req'!A28 -> Enhanced Oil Recovery Account (EORA) | C29: ='Authorized Rev Req'!B28 -> D.20-02-045, AL 5884, AL 5915G | D29: 2530.55974 | E29: ='Authorized Rev Req'!D28 -> EPAM | F29: ='Authorized Rev Req'!C28 -> 2530.55974 | G29: =0 -> 0 | H29: 0 | I29: 0 | J29: 0
A30: ='Authorized Rev Req'!A29 -> Hazardous Substance Cost-Recovery Account (HSCRA) | C30: ='Authorized Rev Req'!B29 -> D.20-02-045, AL 5884, AL 5915G | D30: 284.26279 | E30: ='Authorized Rev Req'!D29 -> ECPT | F30: ='Authorized Rev Req'!C29 -> 284.26279 | G30: =0 -> 0 | H30: 0 | I30: 0 | J30: 0
A31: ='Authorized Rev Req'!A30 -> Intervenor Award Memorandum Account (IAMA) | C31: ='Authorized Rev Req'!B30 -> D.20-02-045, AL 5884, AL 5915G | D31: 731.580665 | E31: ='Authorized Rev Req'!D30 -> ECPT | F31: ='Authorized Rev Req'!C30 -> 731.580665 | G31: =0 -> 0 | H31: 0 | I31: 0 | J31: 0
A32: ='Authorized Rev Req'!A31 -> Master Meter Balancing Account (MMBA) | C32: ='Authorized Rev Req'!B31 -> D.20-02-045, AL 5884, AL 5915G | D32: 17468.47031 | E32: ='Authorized Rev Req'!D31 -> EPAM | F32: ='Authorized Rev Req'!C31 -> 17468.47031 | G32: 26489.88974 | H32: 29872.87257 | I32: 34359.90823 | J32: 39396.95928
A33: ='Authorized Rev Req'!A32 -> Noncore Fixed Cost Account (NFCA) Margin | C33: ='Authorized Rev Req'!B32 -> D.20-02-045, AL 5884, AL 5915G | D33: 6370.180978 | E33: ='Authorized Rev Req'!D32 -> Non-Residential | F33: ='Authorized Rev Req'!C32 -> 6370.180978 | G33: =0 -> 0 | H33: 0 | I33: 0 | J33: 0
A34: ='Authorized Rev Req'!A33 -> Noncore Fixed Cost Account (NFCA) Nonmargin | C34: ='Authorized Rev Req'!B33 -> D.20-02-045, AL 5884, AL 5915G | D34: -3275.185198 | E34: ='Authorized Rev Req'!D33 -> Non-Residential | F34: ='Authorized Rev Req'!C33 -> -3275.185198 | G34: =0 -> 0 | H34: 0 | I34: 0 | J34: 0
A35: ='Authorized Rev Req'!A34 -> Integrated Transmission Balancing Account (ITBA) Margin | C35: ='Authorized Rev Req'!B34 -> D.20-02-045, AL 5884, AL 5915G | D35: 176.0981414 | E35: ='Authorized Rev Req'!D34 -> ECPT | F35: ='Authorized Rev Req'!C34 -> 176.0981414 | G35: =0 -> 0 | H35: 0 | I35: 0 | J35: 0
A36: ='Authorized Rev Req'!A35 -> Compressor Station Fuel and Power Balancing Account (CFPBA) | C36: ='Authorized Rev Req'!B35 -> D.20-02-045, AL 5884, AL 5915G | D36: -1423.035883 | E36: ='Authorized Rev Req'!D35 -> ECPT | F36: ='Authorized Rev Req'!C35 -> -1423.035883 | G36: =0 -> 0 | H36: =G36 -> 0 | I36: =H36 -> 0 | J36: =I36 -> 0
A37: ='Authorized Rev Req'!A36 -> Compression Services Balancing Account (CSBA) | C37: ='Authorized Rev Req'!B36 -> D.20-02-045, AL 5884, AL 5915G | D37: -68.36948884 | E37: ='Authorized Rev Req'!D36 -> Non-Residential | F37: ='Authorized Rev Req'!C36 -> -68.36948884 | G37: =0 -> 0 | H37: 0 | I37: 0 | J37: 0
A38: ='Authorized Rev Req'!A37 -> Company-Use Fuel for Load Balancing Account (CUFLBA) | C38: ='Authorized Rev Req'!B37 -> D.20-02-045, AL 5884, AL 5915G | D38: -1168.448441 | E38: ='Authorized Rev Req'!D37 -> ECPT | F38: ='Authorized Rev Req'!C37 -> -1168.448441 | G38: =0 -> 0 | H38: 0 | I38: 0 | J38: 0
A39: ='Authorized Rev Req'!A38 -> Noncore Storage Balancing Account (NSBA) | C39: ='Authorized Rev Req'!B38 -> D.20-02-045, AL 5884, AL 5915G | D39: 122.0512176 | E39: ='Authorized Rev Req'!D38 -> ECPT | F39: ='Authorized Rev Req'!C38 -> 122.0512176 | G39: =0 -> 0 | H39: 0 | I39: 0 | J39: 0
A40: ='Authorized Rev Req'!A39 -> Pension Balancing Account (PBA) | C40: ='Authorized Rev Req'!B39 -> D.20-02-045, AL 5884, AL 5915G | D40: 11312.64409 | E40: ='Authorized Rev Req'!D39 -> EPAM | F40: ='Authorized Rev Req'!C39 -> 11312.64409 | G40: =0 -> 0 | H40: =G40 -> 0 | I40: =H40 -> 0 | J40: =I40 -> 0
A41: ='Authorized Rev Req'!A40 -> PBOP Balancing Account (PBOPBA) | C41: ='Authorized Rev Req'!B40 -> D.20-02-045, AL 5884, AL 5915G | D41: -4328.422797 | E41: ='Authorized Rev Req'!D40 -> EPAM | F41: ='Authorized Rev Req'!C40 -> -4328.422797 | G41: =0 -> 0 | H41: 0 | I41: 0 | J41: 0
A42: ='Authorized Rev Req'!A41 -> Safety Enhancement Capital Cost Balancing Account (SECCBA) - Local Transmission | C42: ='Authorized Rev Req'!B41 -> D.20-02-045, AL 5884, AL 5915G | D42: 22874.17654 | E42: ='Authorized Rev Req'!D41 -> Local Transmission | F42: ='Authorized Rev Req'!C41 -> 22874.17654 | G42: =0 -> 0 | H42: 0 | I42: 0 | J42: 0
A43: ='Authorized Rev Req'!A42 -> Safety Enhancement Capital Cost Balancing Account (SECCBA) - Distribution | C43: ='Authorized Rev Req'!B42 -> D.20-02-045, AL 5884, AL 5915G | D43: 72521.18682 | E43: ='Authorized Rev Req'!D42 -> Distribution | F43: ='Authorized Rev Req'!C42 -> 72521.18682 | G43: =0 -> 0 | H43: 0 | I43: 0 | J43: 0
A44: ='Authorized Rev Req'!A43 -> Safety Enhancement Expense Balancing Account (SEEBA) - Local Transmission | C44: ='Authorized Rev Req'!B43 -> D.20-02-045, AL 5884, AL 5915G | D44: 572.0979832 | E44: ='Authorized Rev Req'!D43 -> Local Transmission | F44: ='Authorized Rev Req'!C43 -> 572.0979832 | G44: =0 -> 0 | H44: 0 | I44: 0 | J44: 0
A45: ='Authorized Rev Req'!A44 -> Safety Enhancement Expense Balancing Account (SEEBA) - Distribution | C45: ='Authorized Rev Req'!B44 -> D.20-02-045, AL 5884, AL 5915G | D45: 1611.907472 | E45: ='Authorized Rev Req'!D44 -> Distribution | F45: ='Authorized Rev Req'!C44 -> 1611.907472 | G45: =0 -> 0 | H45: 0 | I45: 0 | J45: 0
A46: ='Authorized Rev Req'!A45 -> Research Royalty Memorandum Account (RRMA) | C46: ='Authorized Rev Req'!B45 -> D.20-02-045, AL 5884, AL 5915G | D46: -160.8244502 | E46: ='Authorized Rev Req'!D45 -> EPAM | F46: ='Authorized Rev Req'!C45 -> -160.8244502 | G46: =0 -> 0 | H46: 0 | I46: 0 | J46: 0
A47: ='Authorized Rev Req'!A46 -> Self-Generation Program Memorandum Account (SGPMA) | C47: ='Authorized Rev Req'!B46 -> D.20-02-045, AL 5884, AL 5915G | D47: 16267.79819 | E47: ='Authorized Rev Req'!D46 -> SGIP | F47: ='Authorized Rev Req'!C46 -> 16267.79819 | G47: =0 -> 0 | H47: 0 | I47: 0 | J47: 0
A48: ='Authorized Rev Req'!A47 -> System Operator Gas Account (SOGA) | C48: ='Authorized Rev Req'!B47 -> D.20-02-045, AL 5884, AL 5915G | D48: -57.47472488 | E48: ='Authorized Rev Req'!D47 -> ECPT | F48: ='Authorized Rev Req'!C47 -> -57.47472488 | G48: =0 -> 0 | H48: 0 | I48: 0 | J48: 0
A49: ='Authorized Rev Req'!A48 -> Rewards & Penalties Balancing Account (RPBA) | C49: ='Authorized Rev Req'!B48 -> D.20-02-045, AL 5884, AL 5915G | D49: -266.7671576 | E49: ='Authorized Rev Req'!D48 -> EPAM | F49: ='Authorized Rev Req'!C48 -> -266.7671576 | G49: =0 -> 0 | H49: 0 | I49: 0 | J49: 0
A50: ='Authorized Rev Req'!A49 -> Liability Insurance Premium Balancing Account (LIPBA) | C50: ='Authorized Rev Req'!B49 -> D.20-02-045, AL 5884, AL 5915G | D50: 14313.74818 | E50: ='Authorized Rev Req'!D49 -> EPAM | F50: ='Authorized Rev Req'!C49 -> 14313.74818 | G50: =0 -> 0 | H50: 0 | I50: 0 | J50: 0
A51: ='Authorized Rev Req'!A50 -> NonCore Backbone Transmission | C51: ='Authorized Rev Req'!B50 -> D.20-02-045, AL 5884, AL 5915G | D51: 205899.099 | E51: ='Authorized Rev Req'!D50 -> Backbone Transmission | F51: ='Authorized Rev Req'!C50 -> 205899.099 | G51: 209446.2524 | H51: =G51 -> 209446.2524 | I51: =0 -> 0 | J51: 0
A52: ='Authorized Rev Req'!A51 -> Storage Integrity Management Program Balancing Account (SIMPBA) Balance | C52: ='Authorized Rev Req'!B51 -> D.22-07-016, AL 6023 | D52: 0 | E52: ='Authorized Rev Req'!D51 -> EPAM | F52: ='Authorized Rev Req'!C51 -> 0 | G52: 35028 | H52: 0 | I52: 0 | J52: 0
A53: ='Authorized Rev Req'!A52 -> On-Bill Financing Balancing Account (OBFBA) | C53: ='Authorized Rev Req'!B52 -> AL 5853-A | D53: =F53 -> 0 | E53: ='Authorized Rev Req'!D52 -> EPAM | F53: ='Authorized Rev Req'!C52 -> 0 | G53: 4500 | H53: =0 -> 0 | I53: 0 | J53: 0
A58: ='Authorized Rev Req'!A58 -> Public Policy Proceedings
A59: ='Authorized Rev Req'!A59 -> AB32 Fees (subtracted from base margin and allocated here) | C59: ='Authorized Rev Req'!B59 -> D.19-09-051 | D59: =F59 -> 5107.071894 | E59: ='Authorized Rev Req'!D59 -> ECPT adjusted | F59: ='Authorized Rev Req'!C59 -> 5107.071894 | G59: =0 -> 0 | H59: =G59 -> 0 | I59: =H59 -> 0 | J59: =I59 -> 0
A60: ='Authorized Rev Req'!A60 -> Green House Gas Balancing Account (GHGBA) - Company Gas Compressor Revenue Requirement | C60: ='Authorized Rev Req'!B60 -> D.20-02-045, AL 5884, AL 5915G | D60: =F60 -> 2676.455882 | E60: ='Authorized Rev Req'!D60 -> ECPT | F60: ='Authorized Rev Req'!C60 -> 2676.455882 | G60: =0 -> 0 | H60: =G60 -> 0 | I60: =H60 -> 0 | J60: =I60 -> 0
A61: ='Authorized Rev Req'!A61 -> Green House Gas Balancing Account (GHGBA) - End User Revenue Requirement | C61: ='Authorized Rev Req'!B61 -> D.20-02-045, AL 5884, AL 5915G | D61: 421911.6559 | E61: ='Authorized Rev Req'!D61 -> GHG End User | F61: ='Authorized Rev Req'!C61 -> 421911.6559 | G61: =0 -> 0 | H61: =G61 -> 0 | I61: =H61 -> 0 | J61: =I61 -> 0
A62: ='Authorized Rev Req'!A62 -> Green House Gas Balancing Account (GHGBA) - LUAF Revenue Requirement | C62: ='Authorized Rev Req'!B62 -> D.20-02-045, AL 5884, AL 5915G | D62: 11523.70083 | E62: ='Authorized Rev Req'!D62 -> 47% Res (LUAF, Other) | F62: ='Authorized Rev Req'!C62 -> 11523.70083 | G62: =0 -> 0 | H62: 0 | I62: 0 | J62: 0
A63: ='Authorized Rev Req'!A63 -> Green House Gas Balancing Account (GHGBA) - Company Gas Compressor | C63: ='Authorized Rev Req'!B63 -> D.20-02-045, AL 5884, AL 5915G | D63: 110.1068734 | E63: ='Authorized Rev Req'!D63 -> ECPT | F63: ='Authorized Rev Req'!C63 -> 110.1068734 | G63: =0 -> 0 | H63: 0 | I63: 0 | J63: 0
A64: ='Authorized Rev Req'!A64 -> Green House Gas Balancing Account (GHGBA) - End User | C64: ='Authorized Rev Req'!B64 -> D.20-02-045, AL 5884, AL 5915G | D64: 24082.11232 | E64: ='Authorized Rev Req'!D64 -> GHG End User | F64: ='Authorized Rev Req'!C64 -> 24082.11232 | G64: =0 -> 0 | H64: 0 | I64: 0 | J64: 0
A65: ='Authorized Rev Req'!A65 -> Green House Gas Balancing Account (GHGBA) - LUAF | C65: ='Authorized Rev Req'!B65 -> D.20-02-045, AL 5884, AL 5915G | D65: 96.16147584 | E65: ='Authorized Rev Req'!D65 -> 47% Res (LUAF, Other) | F65: ='Authorized Rev Req'!C65 -> 96.16147584 | G65: =0 -> 0 | H65: 0 | I65: 0 | J65: 0
A66: ='Authorized Rev Req'!A66 -> New Envirnomental Regulatory Balancing Account (NERBA) - Admin Fees Subaccount | C66: ='Authorized Rev Req'!B66 -> D.20-02-045, AL 5884, AL 5915G | D66: 3566.9059 | E66: ='Authorized Rev Req'!D66 -> ECPT adjusted | F66: ='Authorized Rev Req'!C66 -> 3566.9059 | G66: =0 -> 0 | H66: 0 | I66: 0 | J66: 0
A67: ='Authorized Rev Req'!A67 -> New Environmental Regulatory Balancing Account (NERBA) - Leak Detection & Repair (LDAR) sub-account | C67: ='Authorized Rev Req'!B67 -> D.20-02-045, AL 5884, AL 5915G | D67: 1979.707886 | E67: ='Authorized Rev Req'!D67 -> EPAM | F67: ='Authorized Rev Req'!C67 -> 1979.707886 | G67: =0 -> 0 | H67: 0 | I67: 0 | J67: 0
A68: ='Authorized Rev Req'!A68 -> New Envirnomental Regulatory Balancing Account (NERBA) -Natural Gas Leak Abatement Program | C68: ='Authorized Rev Req'!B68 -> D.20-02-045, AL 5884, AL 5915G | D68: -2147.512017 | E68: ='Authorized Rev Req'!D68 -> EPAM | F68: ='Authorized Rev Req'!C68 -> -2147.512017 | G68: =0 -> 0 | H68: 0 | I68: 0 | J68: 0
A69: ='Authorized Rev Req'!A69 -> TLS Adjustment | C69: ='Authorized Rev Req'!B69 -> D.20-02-045, AL 5884, AL 5915G | D69: -6644.931817 | E69: ='Authorized Rev Req'!D69 -> Non-Residential | F69: ='Authorized Rev Req'!C69 -> -6644.931817 | G69: =0 -> 0 | H69: 0 | I69: 0 | J69: 0
A70: ='Authorized Rev Req'!A70 -> Natural Gas Leak Abatement Program Revenue Requirement | C70: ='Authorized Rev Req'!B70 -> AL 5915G | D70: 86446.46472 | E70: ='Authorized Rev Req'!D70 -> EPAM | F70: ='Authorized Rev Req'!C70 -> 86446.46472 | G70: =F70 -> 86446.46472 | H70: =G70 -> 86446.46472 | I70: =0 -> 0 | J70: =0 -> 0
A71: ='Authorized Rev Req'!A71 -> Biogas Conditioning/Upgrading Svcs Bal Acct (BCSBA) | C71: ='Authorized Rev Req'!B71 -> D.20-02-045, AL 5884, AL 5915G | D71: =F71 -> -48.66967436 | E71: ='Authorized Rev Req'!D71 -> EPAM | F71: ='Authorized Rev Req'!C71 -> -48.66967436 | G71: =0 -> 0 | H71: =G71 -> 0 | I71: =H71 -> 0 | J71: =I71 -> 0
A72: ='Authorized Rev Req'!A72 -> Diary Biomethane Project Balancing Account (DBPBA) | C72: ='Authorized Rev Req'!B72 -> D.20-02-045, AL 5884, AL 5915G | D72: 45457.03256 | E72: ='Authorized Rev Req'!D72 -> EPAM | F72: ='Authorized Rev Req'!C72 -> 45457.03256 | G72: =0 -> 0 | H72: 0 | I72: 0 | J72: 0
A73: ='Authorized Rev Req'!A73 -> California Solar Iniative Thermal Memorandum Account (CSITPMA) | C73: ='Authorized Rev Req'!B73 -> D.20-02-045, AL 5884, AL 5915G | D73: 1411.38197 | E73: ='Authorized Rev Req'!D73 -> ECPT adjusted | F73: ='Authorized Rev Req'!C73 -> 1411.38197 | G73: =0 -> 0 | H73: 0 | I73: 0 | J73: 0
A76: ='Authorized Rev Req'!A82 -> California Alternate Rates for Energy (CARE) | C76: ='Authorized Rev Req'!B82 -> AL 5891G, D.21-06-015 | D76: =F76 -> 229388.1321 | E76: ='Authorized Rev Req'!D82 -> Public Purpose Programs | F76: ='Authorized Rev Req'!C82 -> 229388.1321 | G76: 150983.2796 | H76: 152497.4174 | I76: 154039.1134 | J76: 155411.2686
A77: ='Authorized Rev Req'!A83 -> Energy Efficiency | C77: ='Authorized Rev Req'!B83 -> AL 5891G, AL 5898-A | D77: =F77 -> 107144.935 | E77: ='Authorized Rev Req'!D83 -> Public Purpose Programs | F77: ='Authorized Rev Req'!C83 -> 107144.935 | G77: 132220.3634 | H77: =G77 -> 132220.3634 | I77: 132220.3634 | J77: 132220.3634
A78: ='Authorized Rev Req'!A84 -> RD&D | C78: ='Authorized Rev Req'!B84 -> AL 5891G | D78: 12406.90965 | E78: ='Authorized Rev Req'!D84 -> Public Purpose Programs | F78: ='Authorized Rev Req'!C84 -> 12406.90965 | G78: =0 -> 0 | H78: =G78 -> 0 | I78: 0 | J78: 0
A79: ='Authorized Rev Req'!A85 -> Bureau Of Equalization BOE | C79: ='Authorized Rev Req'!B85 -> AL 5891G | D79: 547.65497 | E79: ='Authorized Rev Req'!D85 -> Public Purpose Programs | F79: ='Authorized Rev Req'!C85 -> 547.65497 | G79: =0 -> 0 | H79: =G79 -> 0 | I79: 0 | J79: 0
A80: ='Authorized Rev Req'!A86 -> Energy Savings Assistance | C80: ='Authorized Rev Req'!B86 -> AL 5891G, D.21-06-015 | D80: =F80 -> 0 | E80: ='Authorized Rev Req'!D86 -> Public Purpose Programs | F80: ='Authorized Rev Req'!C86 -> 0 | G80: 122824.705 | H80: 122814.843 | I80: 122849.884 | J80: 122541.07
A84: ='Authorized Rev Req'!A96 -> EOR | C84: ='Authorized Rev Req'!B96 -> D.20-02-045, AL 5884 | D84: =F84 -> -19696.02666 | E84: ='Authorized Rev Req'!D96 -> EPAM | F84: ='Authorized Rev Req'!C96 -> -19696.02666 | G84: =0 -> 0 | H84: =G84 -> 0 | I84: =H84 -> 0 | J84: =I84 -> 0
A87: Procurement | C87: ='Authorized Rev Req'!B99 -> D.98-07-068 | D87: =F87 -> 2183405.059 | E87: ='Authorized Rev Req'!D99 -> Core Procurement | F87: ='Authorized Rev Req'!C99 -> 2183405.059 | G87: =0 -> 0 | H87: =G87 -> 0 | I87: =H87 -> 0 | J87: =I87 -> 0
A91: Total Approved, Implemented Since Jan 1 or To Be Implemented | D91: =SUM(D11:D90) -> 6349606.745 | F91: =SUM(F11:F90) -> 6349606.745 | G91: =SUM(G11:G90) -> 4431365.91 | H91: =SUM(H11:H90) -> 4396725.169 | I91: =SUM(I11:I90) -> 4055375.269 | J91: =SUM(J11:J90) -> 4061475.661
A93: CPUC Fee | E93: CPUC Fee | F93: 0.00577
A96: Pending Application(s) Not Yet Approved
A97: Filing Description | B97: Proceeding | C97: Basis of Revenue Requirement Forecast: Application, Amended Application , Amended Testimony, Proposed Settlement Agreement, Proposed Decision | D97: Proposed Revenue Requirement with FF&U ($000) | E97: Proposed Revenue Recovery Mechanism | F97: Incremental Revenue Requirement with FF&U ($000) - Breakout by Year
A98: Safety Affordability Reliability Proceedings | F98: 2022 | G98: 2023 | H98: 2024 | I98: 2025 | J98: 2026
A99: 2024 GRC Application | B99: A.22-05-015 | C99: Application | D99: =SUM(F99:J99) -> 2827721.6 | E99: Allocated Base Margin | H99: 668170.1926 | I99: 950655.2213 | J99: 1208896.186
A100: Pipeline Safety Enhancement Plan (PSEP) GRC - Local Transmission | B100: A.22-05-015 | C100: Application | D100: -5487.14862 | E100: Local Transmission | H100: -5487.14862
A101: Pipeline Safety Enhancement Plan (PSEP) GRC -Distribution | B101: A.22-05-015 | C101: Application | D101: 63454.75 | E101: Distribution | H101: 63454.75
A102: NonCore Backbone Transmission | B102: A.22-05-015 | C102: Application | D102: 22240.27738 | E102: Backbone Transmission | H102: 22240.27738
D103: 0
D104: 0
A105: Public Policy Proceedings | D105: 0
A106: Natural Gas Leak Abatement | B106: AL 5950 | C106: Advice Letter | D106: 65770.27865 | E106: EPAM | G106: 24362.65158 | H106: 41407.62708
A107: Triennial Cost Allocation Proceeding | B107: A. 22-09-015 | C107: Application | D107: 0 | E107: EPAM | G107: 0 | H107: 0 | I107: 0 | J107: 0
A108: SoCalGas Cost of Capital Application | B108: A. 22-04-011 | C108: Application | D108: 246000 | E108: EPAM | G108: 61500 | H108: 61500 | I108: 61500 | J108: 61500
A109: Energy Efficiency | B109: A.22-03-008 | C109: Application | D109: =SUM(F109:J109) -> 60415.31974 | E109: Public Purpose Programs | H109: 19467.17603 | I109: 20077.38727 | J109: 20870.75644
D110: =SUM(F110:J110) -> 0
D111: 0
D112: 0
D113: 0
D114: 0
D115: 0
D116: 0
D117: 0
D118: 0
D119: 0
D120: 0
D121: 0
D122: 0
D123: 0
D124: 0
D125: 0
D126: 0
A127: Total Pending, Filed but not Approved | D127: =SUM(D99:D125) -> 3280115.078 | F127: =SUM(F99:F126) -> 0 | G127: 85862.65158 | H127: 870752.8745 | I127: 1032232.609 | J127: 1291266.943
